bitfinex/quotes_SOLUSD_20250531
["timestamp","ask_amount","ask_price","bid_price","bid_amount"]
[1748656683370,52.46422421,152.76,152.74,0.4574482]
[1748656683573,98.74422421,152.75,152.74,0.4574482]
[1748656683740,105.29086905,152.75,152.74,0.4574482]
[1748656684372,119.51086905,152.75,152.74,0.4574482]
[1748656684872,67.04664484,152.75,152.74,0.4574482]
[1748656685167,119.51086905,152.75,152.74,0.4574482]
[1748656685349,67.04664484,152.75,152.74,0.4574482]
[1748656685549,112.96422421,152.75,152.74,0.4574482]
[1748656686373,148.4146,152.8,152.74,0.4574482]
[1748656686537,14.22,152.84,152.75,18.933972]
[1748656686743,52.46422421,152.79,152.75,18.933972]
[1748656687357,52.46422421,152.76,152.75,0.28432314]
[1748656687567,52.46422421,152.76,152.74,0.4574482]
[1748656687775,52.46422421,152.75,152.74,0.4574482]
[1748656690443,52.46422421,152.76,152.74,0.4574482]
[1748656690648,52.46422421,152.75,152.74,0.4574482]
[1748656691573,46.26,152.75,152.74,0.4574482]
[1748656691778,46.26,152.75,152.55,114.41867688]
[1748656691779,124.72422421,152.75,152.63,6.55142434]
[1748656691985,72.26,152.75,152.62,59.01644541]
[1748656692172,52.46422421,152.68,152.62,59.01644541]
[1748656692344,52.46422421,152.66,152.62,6.5522212]
[1748656692549,52.46422421,152.67,152.62,6.5522212]
[1748656692973,52.46422421,152.68,152.63,18.933972]
[1748656693285,52.46422421,152.67,152.63,18.64964886]
[1748656693566,52.46422421,152.69,152.65,18.64964886]
[1748656693983,52.46422421,152.68,152.66,0.28432314]
[1748656694278,52.46422421,152.68,152.66,6.55050438]
[1748656694584,52.46422421,152.68,152.63,6.55179191]
[1748656694892,52.46422421,152.68,152.62,87.49442607]
[1748656694893,52.46422421,152.66,152.62,6.55213612]
[1748656695176,52.46422421,152.66,152.61,6.1713]
[1748656695177,52.46422421,152.65,152.61,12.72383445]
[1748656695342,52.46422421,152.65,152.61,6.55253445]
[1748656695762,52.46422421,152.66,152.61,6.55253445]
[1748656695961,27.6026,152.72,152.59,19.03830598]
[1748656696147,52.46422421,152.64,152.59,19.03830598]
[1748656696346,98.72422421,152.65,152.6,18.64964886]
[1748656696547,52.46422421,152.65,152.6,71.11387307]
[1748656696764,52.46422421,152.61,152.59,12.48488304]
[1748656697872,52.46422421,152.6,152.59,12.48488304]
[1748656698068,46.26,152.61,152.59,12.48488304]
[1748656698274,14.16,152.65,152.59,12.48488304]
[1748656698574,52.46422421,152.6,152.59,12.76920618]
[1748656698757,66.97094771,152.65,152.59,12.76920618]
[1748656698946,52.46422421,152.62,152.59,12.76920618]
[1748656699150,52.46422421,152.61,152.59,12.48488304]
[1748656699374,52.46422421,152.61,152.59,19.03826174]
[1748656699554,14.16,152.65,152.59,19.03826174]
[1748656699555,98.72422421,152.64,152.6,0.28432314]
[1748656699745,52.46422421,152.65,152.6,71.39819621]
[1748656700055,52.46422421,152.66,152.62,18.933972]
[1748656700645,52.46422421,152.68,152.63,52.46422421]
[1748656700868,52.46422421,152.68,152.62,18.933972]
[1748656700869,52.46422421,152.7,152.65,18.64964886]
[1748656701081,52.46422421,152.68,152.65,18.64964886]
[1748656701573,24.52472671,152.73,152.65,18.64964886]
[1748656701774,10.36472671,152.73,152.68,0.28432314]
[1748656702076,10.36472671,152.73,152.67,71.11387307]
[1748656702077,0.5,152.7,152.69,25.48318936]
[1748656702378,52.46422421,152.74,152.69,25.48318936]
[1748656702554,14.16,152.78,152.7,52.74854735]
[1748656702746,52.46422421,152.75,152.7,52.46422421]
[1748656702946,52.46422421,152.74,152.7,18.933972]
[1748656703560,46.26,152.77,152.7,18.933972]
[1748656703777,14.16,152.78,152.71,18.64964886]
[1748656703957,52.46422421,152.76,152.73,0.28432314]
[1748656704576,46.26,152.77,152.73,0.28432314]
[1748656704897,52.46422421,152.74,152.66,42.37596809]
[1748656705054,52.46422421,152.72,152.67,71.39819621]
[1748656705391,52.46422421,152.72,152.67,71.25603464]
[1748656705588,46.24,152.74,152.67,71.25603464]
[1748656705589,52.46422421,152.73,152.69,0.14216157]
[1748656705766,52.46422421,152.75,152.69,71.39819621]
[1748656705965,52.46422421,152.76,152.73,0.28432314]
[1748656706266,52.46422421,152.75,152.73,0.28432314]
[1748656706975,1.6026,152.82,152.73,0.28432314]
[1748656707177,52.46422421,152.76,152.73,0.28432314]
[1748656707590,0.5,152.74,152.73,0.28432314]
[1748656707751,0.5,152.74,152.73,71.39819621]
[1748656708088,0.5,152.74,152.73,77.94569833]
[1748656708385,46.24,152.81,152.71,18.933972]
[1748656708386,52.46422421,152.75,152.71,18.933972]
[1748656708728,52.46422421,152.77,152.71,71.39819621]
[1748656708858,52.46422421,152.77,152.73,0.28432314]
[1748656709189,52.46422421,152.76,152.72,0.28432314]
[1748656709479,52.46422421,152.77,152.74,0.28432314]
[1748656709677,46.24,152.78,152.74,0.28432314]
[1748656709973,46.22,152.79,152.74,18.933972]
[1748656710279,10.37711612,152.85,152.78,52.46422421]
[1748656710479,52.46422421,152.86,152.81,18.64964886]
[1748656710652,18.33159462,152.9,152.81,18.64964886]
[1748656710653,11.79096391,152.9,152.84,0.28432314]
[1748656710851,52.46422421,152.92,152.87,0.28432314]
[1748656711060,46.22,152.94,152.87,52.74854735]
[1748656711277,46.22,152.94,152.87,0.28432314]
[1748656711278,52.46422421,152.91,152.87,0.28432314]
[1748656711479,52.46422421,152.89,152.85,0.28432314]
[1748656711667,46.2,152.91,152.86,71.11387307]
[1748656711870,52.46422421,152.93,152.88,52.74854735]
[1748656712066,20.69768866,152.96,152.88,52.74854735]
[1748656712269,52.46422421,152.92,152.88,0.28432314]
[1748656713082,46.2,152.99,152.91,52.46422421]
[1748656713278,52.46422421,152.97,152.93,0.28432314]
[1748656714080,52.46422421,152.97,152.93,6.8232353]
[1748656714281,52.46422421,152.98,152.93,6.8232353]
[1748656714578,6.53601643,153.0,152.95,0.28432314]
[1748656714579,52.46422421,153.0,152.95,0.28432314]
[1748656714984,46.18,153.02,152.95,52.74854735]
[1748656715173,52.46422421,153.01,152.95,52.74854735]
[1748656715395,52.46422421,153.03,152.97,71.39819621]
[1748656715595,60.34,153.04,153.0,0.28432314]
[1748656715799,98.64422421,153.05,153.0,71.39819621]
[1748656716378,58.9950497,153.12,153.0,0.28432314]
[1748656716581,52.46422421,153.01,152.97,18.933972]
[1748656716913,26.0,153.08,152.92,18.64964886]
[1748656716914,52.46422421,152.98,152.92,18.64964886]
[1748656717094,52.46422421,152.97,152.92,71.11387307]
[1748656717297,46.18,153.0,152.92,71.11387307]
[1748656717298,52.46422421,152.98,152.93,52.60638578]
[1748656717588,52.46422421,152.98,152.92,18.64964886]
[1748656717589,52.46422421,152.97,152.92,18.64964886]
[1748656717794,6.53717789,152.98,152.92,71.11387307]
[1748656718103,59.0014021,152.98,152.93,0.28432314]
[1748656718291,59.0014021,152.98,152.93,0.14216157]
[1748656718711,59.0014021,152.98,152.93,52.60638578]
[1748656718712,6.53717789,152.98,152.93,52.60638578]
[1748656718893,59.0014021,152.98,152.94,0.14216157]
[1748656719701,6.53717789,152.98,152.94,0.14216157]
[1748656719901,52.46422421,152.97,152.94,0.14216157]
[1748656720613,6.53717789,152.98,152.92,0.14216157]
[1748656720614,52.46422421,152.96,152.92,0.14216157]
[1748656721226,52.46422421,152.96,152.88,66.62422421]
[1748656721227,52.46422421,152.93,152.88,66.62422421]
[1748656721524,98.60422421,152.96,152.9,52.46422421]
[1748656721691,98.60422421,152.96,152.89,18.64964886]
[1748656721692,52.65723142,152.97,152.93,52.46422421]
[1748656721894,6.53723142,152.97,152.93,0.28432314]
[1748656722894,17.94256683,153.04,152.96,52.46422421]
[1748656723102,6.5346664,153.03,153.0,52.46422421]
[1748656723411,6.5346664,153.03,153.01,0.28432314]
[1748656723592,58.99808233,153.05,153.01,0.28432314]
[1748656723782,52.46422421,153.04,152.99,52.46422421]
[1748656724909,52.65385812,153.05,152.98,0.28432314]
[1748656724910,52.46422421,153.02,152.98,0.28432314]
[1748656725113,58.99889061,153.03,152.98,52.74854735]
[1748656725410,58.99889061,153.03,152.98,0.28432314]
[1748656725620,58.99889061,153.03,152.98,52.74854735]
[1748656725804,52.46422421,153.02,152.98,0.28432314]
[1748656726519,58.99718298,153.07,153.02,0.28432314]
[1748656726705,6.53167864,153.1,153.05,52.46422421]
[1748656726894,52.46422421,153.1,153.06,0.28432314]
[1748656727652,16.32545544,153.14,153.06,18.933972]
[1748656727821,52.46422421,153.11,153.06,52.74854735]
[1748656728912,6.530399,153.13,153.08,71.39819621]
[1748656729209,52.630399,153.13,153.08,18.933972]
[1748656729412,52.630399,153.13,153.08,71.39819621]
[1748656729613,52.630399,153.13,153.09,52.46422421]
[1748656729614,6.530399,153.13,153.09,52.46422421]
[1748656729820,6.530399,153.13,153.08,18.933972]
[1748656729821,58.99462321,153.13,153.08,71.39819621]
[1748656730321,6.530399,153.13,153.1,18.933972]
[1748656731025,6.52826739,153.18,153.12,0.28432314]
[1748656731215,6.52826739,153.18,153.12,71.39819621]
[1748656731405,52.46422421,153.2,153.15,52.46422421]
[1748656732225,58.99170265,153.2,153.15,52.46422421]
[1748656732623,58.99170265,153.2,153.05,52.46422421]
[1748656732624,43.6981,153.19,153.05,52.46422421]
[1748656732844,52.46422421,153.08,153.02,6.1018]
[1748656733136,58.99598594,153.1,153.05,18.64964886]
[1748656733313,58.99598594,153.1,153.02,38.63686601]
[1748656733314,52.46422421,153.12,153.07,71.39819621]
[1748656733842,52.46422421,153.11,153.07,0.14216157]
[1748656734000,52.46422421,153.1,153.07,0.14216157]
[1748656734203,52.46422421,153.1,153.07,0.28432314]
[1748656734705,6.530399,153.13,153.09,18.64964886]
[1748656734906,16.32328617,153.16,153.1,0.28432314]
[1748656735114,52.46422421,153.14,153.1,0.28432314]
[1748656735353,52.46422421,153.12,153.1,0.14216157]
[1748656735649,52.46422421,153.11,153.05,71.11387307]
[1748656736017,52.46422421,153.13,153.08,18.933972]
[1748656736222,46.04,153.14,153.08,52.74854735]
[1748656736516,16.32328617,153.16,153.11,0.28432314]
[1748656736517,52.46422421,153.15,153.11,0.28432314]
[1748656736716,52.46422421,153.16,153.11,71.39819621]
[1748656736950,52.46422421,153.17,153.11,71.39819621]
[1748656737840,58.9924916,153.18,153.12,52.46422421]
[1748656738016,58.9924916,153.18,153.13,18.933972]
[1748656738455,52.46422421,153.19,153.15,0.28432314]
[1748656738916,52.46422421,153.18,153.15,0.28432314]
[1748656740341,52.46422421,153.16,153.08,44.64964886]
[1748656740516,52.46422421,153.13,153.08,52.46422421]
[1748656740716,52.46422421,153.14,153.08,52.46422421]
[1748656740953,52.46422421,153.14,153.09,18.64964886]
[1748656741240,52.46422421,153.13,153.09,18.64964886]
[1748656741439,52.46422421,153.13,153.07,71.11387307]
[1748656741740,6.52999255,153.14,153.06,14.08]
[1748656741741,52.46422421,153.14,153.09,71.11387307]
[1748656741916,52.46422421,153.14,153.1,0.14216157]
[1748656742117,52.46422421,153.14,153.1,0.28432314]
[1748656742340,52.46422421,153.13,153.09,18.933972]
[1748656743647,6.53040404,153.13,153.09,0.28432314]
[1748656743957,6.53040404,153.13,153.01,33.62804186]
[1748656743958,52.46422421,153.1,153.01,33.62804186]
[1748656744143,52.46422421,153.08,153.04,18.64964886]
[1748656744650,52.46422421,153.08,153.05,0.28432314]
[1748656744849,52.46422421,153.09,153.04,71.11387307]
[1748656745035,52.46422421,153.1,153.05,52.46422421]
[1748656745235,52.46422421,153.1,153.06,25.46726292]
[1748656745845,52.46422421,153.1,153.06,0.28432314]
[1748656746270,52.46422421,153.09,153.06,0.28432314]
[1748656746433,52.46422421,153.09,153.04,25.18379343]
[1748656746754,52.46422421,153.09,153.06,0.28432314]
[1748656747526,58.99636653,153.09,153.03,32.6572]
[1748656747724,52.46422421,153.08,153.04,18.64964886]
[1748656747934,52.46422421,153.09,153.05,0.14216157]
[1748656748148,52.46422421,153.1,153.07,0.14216157]
[1748656748449,52.53074277,153.13,153.07,0.28432314]
[1748656748629,52.46422421,153.11,153.07,0.28432314]
[1748656748827,52.46422421,153.12,153.07,71.39819621]
[1748656749024,16.31920069,153.2,153.09,71.39819621]
[1748656749025,52.46422421,153.14,153.09,71.39819621]
[1748656749435,52.46422421,153.14,153.11,18.933972]
[1748656749852,52.46422421,153.13,153.11,0.28432314]
[1748656750638,52.46422421,153.14,153.11,0.28432314]
[1748656751042,52.46422421,153.15,153.11,0.28432314]
[1748656751240,52.46422421,153.17,153.13,0.28432314]
[1748656751561,52.46422421,153.19,153.15,0.28432314]
[1748656751749,11.80793071,153.21,153.16,18.64964886]
[1748656751750,52.46422421,153.2,153.16,18.64964886]
[1748656752753,18.33493824,153.21,153.12,71.98]
[1748656752754,52.46422421,153.17,153.13,18.933972]
[1748656752957,6.52812316,153.19,153.13,18.933972]
[1748656753157,52.46422421,153.17,153.13,18.933972]
[1748656753457,52.50812316,153.19,153.13,18.933972]
[1748656753960,52.46422421,153.17,153.13,18.933972]
[1748656754741,52.46422421,153.18,153.13,18.933972]
[1748656754944,52.46422421,153.2,153.15,18.933972]
[1748656755144,52.46422421,153.2,153.15,71.39819621]
[1748656755343,14.0,153.25,153.19,0.28432314]
[1748656755544,52.46422421,153.22,153.19,0.28432314]
[1748656755748,52.46422421,153.21,153.19,0.28432314]
[1748656756274,52.46422421,153.2,153.19,0.14216157]
[1748656757464,52.46422421,153.2,153.16,0.14216157]
[1748656758140,52.46422421,153.21,153.16,52.60638578]
[1748656758351,6.52666951,153.22,153.16,0.14216157]
[1748656758554,52.46422421,153.17,153.1,58.99590285]
[1748656758777,52.46422421,153.15,153.11,18.64964886]
[1748656759064,52.46422421,153.15,153.11,44.64964886]
[1748656759263,6.52893595,153.17,153.11,44.64964886]
[1748656759569,52.46422421,153.15,153.11,51.18083842]
[1748656759780,52.46422421,153.15,153.12,0.14216157]
[1748656759953,52.46422421,153.16,153.12,0.14216157]
[1748656760141,52.46422421,153.16,153.12,0.28432314]
[1748656760553,45.94,153.18,153.13,18.64964886]
[1748656760554,52.46422421,153.18,153.13,18.64964886]
[1748656761171,52.46422421,153.18,153.14,0.28432314]
[1748656761469,52.46422421,153.17,153.14,0.28432314]
[1748656762167,52.44743473,153.2,153.14,6.81428962]
[1748656762168,52.46422421,153.18,153.14,6.81428962]
[1748656762468,52.46422421,153.19,153.14,6.81428962]
[1748656762764,52.44750037,153.2,153.14,6.81428962]
[1748656762765,52.46422421,153.18,153.14,0.28432314]
[1748656763148,52.46422421,153.18,153.14,6.81429492]
[1748656763470,52.46422421,153.19,153.14,6.81429492]
[1748656763973,33.74607182,153.2,153.15,18.64964886]
[1748656764140,33.74607182,153.18,153.15,0.28432314]
[1748656764471,33.74607182,153.17,153.15,0.28432314]
[1748656764770,33.74607182,153.18,153.15,0.28432314]
[1748656764977,33.74607182,153.19,153.15,0.28432314]
[1748656765149,33.74607182,153.19,153.15,18.933972]
[1748656765572,45.92,153.22,153.15,18.933972]
[1748656765573,33.74607182,153.21,153.16,18.64964886]
[1748656766751,33.74607182,153.22,153.18,18.64964886]
[1748656767865,33.74607182,153.2,153.15,0.28432314]
[1748656768068,33.74607182,153.2,153.15,18.933972]
[1748656768249,33.74607182,153.2,153.15,52.68004382]
[1748656768813,33.74607182,153.21,153.15,52.68004382]
[1748656768953,6.52625569,153.23,153.18,33.74607182]
[1748656769152,42.30941632,153.29,153.19,18.933972]
[1748656769347,42.30941632,153.29,153.2,52.39572068]
[1748656769348,33.74607182,153.25,153.2,52.39572068]
[1748656769554,16.30941632,153.29,153.22,0.28432314]
[1748656769555,6.524434,153.27,153.22,0.28432314]
[1748656769770,33.74607182,153.26,153.22,0.28432314]
[1748656769966,6.52358275,153.29,153.22,18.933972]
[1748656770173,14.0,153.3,153.24,18.933972]
[1748656770344,6.52316002,153.3,153.25,33.74607182]
[1748656770684,33.74607182,153.29,153.25,18.64964886]
[1748656770851,40.26923184,153.3,153.25,18.64964886]
[1748656771249,6.52316002,153.3,153.24,33.74607182]
[1748656771476,33.74607182,153.29,153.25,0.28432314]
[1748656771679,40.26979602,153.29,153.25,0.28432314]
[1748656771976,33.74607182,153.28,153.25,0.28432314]
[1748656772270,11.81049166,153.32,153.25,40.55562885]
[1748656772594,33.74607182,153.31,153.26,52.39572068]
[1748656772760,33.74607182,153.31,153.26,18.64964886]
[1748656773072,15.6204,153.35,153.27,0.28432314]
[1748656773275,33.74607182,153.32,153.27,0.28432314]
[1748656773860,33.74607182,153.32,153.28,18.64964886]
[1748656774369,33.74607182,153.31,153.27,18.933972]
[1748656774763,40.26844923,153.32,153.27,18.933972]
[1748656774962,33.74607182,153.32,153.27,18.933972]
[1748656775153,33.74607182,153.32,153.28,18.64964886]
[1748656775468,14.0,153.35,153.29,34.03039496]
[1748656775469,33.74607182,153.34,153.29,34.03039496]
[1748656775670,33.74607182,153.32,153.29,0.28432314]
[1748656776180,33.74607182,153.32,153.24,33.74607182]
[1748656776181,33.74607182,153.3,153.24,33.74607182]
[1748656776355,33.74607182,153.28,153.24,18.64964886]
[1748656776689,52.36236107,153.32,153.25,0.28432314]
[1748656776878,33.74607182,153.28,153.24,18.64964886]
[1748656777179,52.36236107,153.32,153.25,0.28432314]
[1748656777362,33.74607182,153.29,153.25,0.28432314]
[1748656778591,33.74607182,153.3,153.27,0.14216157]
[1748656778765,40.26922133,153.31,153.27,0.14216157]
[1748656778956,33.74607182,153.31,153.27,0.28432314]
[1748656780087,33.74607182,153.32,153.29,18.933972]
[1748656780585,33.74607182,153.32,153.29,0.28432314]
[1748656780963,33.74607182,153.33,153.29,0.28432314]
[1748656781583,33.74607182,153.32,153.29,0.28432314]
[1748656781865,20.52114176,153.35,153.29,0.28432314]
[1748656781866,33.74607182,153.33,153.29,0.28432314]
[1748656782475,33.74607182,153.3,153.26,26.0]
[1748656782659,33.74607182,153.29,153.27,18.64964886]
[1748656782985,33.74607182,153.3,153.28,0.28432314]
[1748656783199,33.74607182,153.29,153.24,18.64964886]
[1748656783368,45.8,153.3,153.21,6.52690076]
[1748656783369,33.74607182,153.26,153.21,6.52690076]
[1748656783568,33.74607182,153.27,153.22,26.0]
[1748656783763,10.2775883,153.29,153.23,18.64964886]
[1748656783979,37.4998104,153.28,153.24,0.14216157]
[1748656784279,37.4998104,153.28,153.24,0.28432314]
[1748656784280,33.74607182,153.28,153.24,0.28432314]
[1748656784671,33.74607182,153.28,153.24,0.14216157]
[1748656784870,72.60515161,153.35,153.24,0.14216157]
[1748656784871,6.52264988,153.32,153.24,33.88823339]
[1748656785172,33.74607182,153.3,153.26,0.14216157]
[1748656785575,33.74607182,153.31,153.27,18.79181043]
[1748656787308,33.74607182,153.31,153.28,0.14216157]
[1748656787613,14.0,153.35,153.31,18.79181043]
[1748656787614,45.78,153.35,153.31,18.79181043]
[1748656787808,16.29870461,153.39,153.32,0.14216157]
[1748656787809,45.78,153.36,153.32,0.14216157]
[1748656788011,79.52607182,153.36,153.32,0.14216157]
[1748656788220,79.52607182,153.36,153.32,6.66445401]
[1748656788603,33.74607182,153.36,153.32,6.66445401]
[1748656789202,33.74607182,153.36,153.33,18.79181043]
[1748656789398,79.52607182,153.37,153.33,6.66402964]
[1748656789592,79.52607182,153.37,153.33,0.14216157]
[1748656789792,33.74607182,153.37,153.33,6.66399235]
[1748656790031,33.74607182,153.37,153.33,0.14216157]
[1748656790320,33.74607182,153.36,153.33,0.14216157]
[1748656790505,79.50607182,153.37,153.33,0.14216157]
[1748656790698,33.74607182,153.37,153.34,0.14216157]
[1748656790900,40.26598315,153.38,153.34,18.79181043]
[1748656791104,33.74607182,153.37,153.34,18.79181043]
[1748656791623,79.50607182,153.38,153.34,18.79181043]
[1748656791798,86.02586328,153.38,153.34,18.79181043]
[1748656792119,79.50607182,153.38,153.34,18.79181043]
[1748656792713,45.76,153.38,153.34,18.79181043]
[1748656792894,79.50607182,153.38,153.34,18.79181043]
[1748656793216,45.76,153.38,153.35,0.14216157]
[1748656793713,33.74607182,153.38,153.35,0.14216157]
[1748656794219,33.74607182,153.37,153.35,0.14216157]
[1748656796506,45.74,153.38,153.34,0.14216157]
[1748656796712,6.51945762,153.39,153.35,18.79181043]
[1748656796713,79.46607182,153.39,153.35,18.79181043]
[1748656797022,6.51901879,153.4,153.35,18.79181043]
[1748656797228,33.74607182,153.36,153.35,0.14216157]
[1748656797529,33.74607182,153.37,153.35,0.14216157]
[1748656797721,33.74607182,153.36,153.31,26.0]
[1748656797927,33.74607182,153.33,153.32,0.28432314]
[1748656798233,33.74607182,153.34,153.32,0.28432314]
[1748656798613,33.74607182,153.34,153.31,26.0]
[1748656799010,33.74607182,153.34,153.32,0.28432314]
[1748656800107,33.74607182,153.33,153.3,18.933972]
[1748656800320,33.74607182,153.31,153.28,18.64964886]
[1748656800720,33.74607182,153.31,153.27,26.0]
[1748656800922,52.22239061,153.32,153.21,33.74607182]
[1748656800923,33.74607182,153.28,153.21,33.74607182]
[1748656801115,33.74607182,153.24,153.2,12.94095634]
[1748656801311,33.74607182,153.21,153.18,6.52826739]
[1748656801512,33.74607182,153.2,153.16,20.3336]
[1748656801714,45.7,153.22,153.13,6.530399]
[1748656801928,26.0,153.24,153.12,6.4136]
[1748656801929,33.74607182,153.15,153.12,6.4136]
[1748656802333,33.74607182,153.15,153.11,13.92]
[1748656802334,33.74607182,153.13,153.07,8.14647952]
[1748656802641,45.7,153.13,153.07,8.14647952]
[1748656802811,79.44607182,153.15,153.1,33.74607182]
[1748656803015,79.44607182,153.15,153.11,18.933972]
[1748656803218,33.74607182,153.18,153.13,60.03039496]
[1748656803432,33.74607182,153.22,153.17,52.39572068]
[1748656803630,46.44535959,153.25,153.16,0.28432314]
[1748656803631,33.74607182,153.25,153.21,18.64964886]
[1748656803829,6.5239573,153.29,153.16,32.4136]
[1748656803830,33.74607182,153.23,153.16,6.4136]
[1748656804021,45.7,153.26,153.19,18.933972]
[1748656804206,228.90428728,153.36,153.19,18.933972]
[1748656804207,16.30258948,153.35,153.23,33.74607182]
[1748656804414,16.30258948,153.35,153.25,0.14216157]
[1748656804415,33.74607182,153.29,153.25,0.14216157]
[1748656804631,33.74607182,153.26,153.25,0.14216157]
[1748656804840,33.74607182,153.26,153.22,0.14216157]
[1748656805016,32.82509455,153.34,153.22,0.14216157]
[1748656805017,79.42607182,153.25,153.22,0.14216157]
[1748656805219,33.74607182,153.24,153.22,0.14216157]
[1748656805526,33.74607182,153.23,153.22,0.14216157]
[1748656805726,45.68,153.25,153.22,0.14216157]
[1748656805727,79.42607182,153.25,153.22,0.14216157]
[1748656805925,79.42607182,153.25,153.21,0.14216157]
[1748656805926,45.68,153.25,153.21,0.14216157]
[1748656806246,40.27267474,153.22,153.15,25.17878431]
[1748656806449,33.74607182,153.19,153.15,25.17878431]
[1748656806924,33.74607182,153.19,153.15,18.64964886]
[1748656807129,33.74607182,153.16,153.07,6.53295877]
[1748656807319,45.68,153.15,153.09,33.74607182]
[1748656807518,33.74607182,153.13,153.08,26.0]
[1748656807830,45.7,153.14,153.1,18.64964886]
[1748656808032,39.92,153.19,153.1,52.39572068]
[1748656808226,45.7,153.17,153.1,52.39572068]
[1748656808538,33.74607182,153.12,153.07,18.64964886]
[1748656808739,33.74607182,153.12,153.07,52.39572068]
[1748656808912,33.74607182,153.16,153.12,18.64964886]
[1748656809116,33.74607182,153.15,153.13,0.28432314]
[1748656809453,45.7,153.17,153.13,0.14216157]
[1748656809454,33.74607182,153.14,153.13,0.14216157]
[1748656810132,52.22887435,153.17,153.13,0.14216157]
[1748656810133,33.74607182,153.15,153.13,0.14216157]
[1748656810528,33.74607182,153.14,153.13,0.14216157]
[1748656810714,79.42607182,153.16,153.13,0.14216157]
[1748656810915,33.74607182,153.15,153.13,0.14216157]
[1748656811214,33.74607182,153.14,153.13,0.14216157]
[1748656811843,33.74607182,153.14,153.07,0.14216157]
[1748656812151,52.2092278,153.16,153.06,26.0]
[1748656812152,33.74607182,153.08,153.06,26.0]
[1748656812330,13.84,153.13,153.06,0.28432314]
[1748656812331,79.42607182,153.09,153.06,0.28432314]
[1748656812531,33.74607182,153.08,153.03,33.74607182]
[1748656812741,33.74607182,153.08,153.03,44.64964886]
[1748656812925,33.74607182,153.08,153.03,78.39572068]
[1748656813244,33.74607182,153.07,153.02,13.92]
[1748656813437,33.74607182,153.07,153.02,39.92]
[1748656813617,33.74607182,153.04,152.99,33.74607182]
[1748656813818,33.74607182,153.06,153.01,18.64964886]
[1748656814017,52.21225495,153.09,153.03,18.64964886]
[1748656814018,33.74607182,153.07,153.03,18.64964886]
[1748656814214,33.74607182,153.06,153.0,59.74607182]
[1748656814416,33.74607182,153.04,153.01,18.64964886]
[1748656814651,33.74607182,153.03,153.0,18.64964886]
[1748656814956,33.74607182,153.03,152.99,26.0]
[1748656815115,45.68,153.05,153.0,52.68004382]
[1748656815315,79.42607182,153.07,153.02,18.933972]
[1748656815840,6.52911987,153.16,153.06,0.28432314]
[1748656816017,6.52911987,153.16,153.03,26.0]
[1748656816018,79.42607182,153.15,153.11,0.28432314]
[1748656816649,79.42607182,153.15,153.07,6.5736]
[1748656816650,33.74607182,153.12,153.08,0.14216157]
[1748656816821,79.44607182,153.11,153.08,0.14216157]
[1748656817017,33.74607182,153.09,153.08,0.14216157]
[1748656817343,33.74607182,153.13,153.09,18.64964886]
[1748656817541,40.27604439,153.14,153.1,0.28432314]
[1748656817738,45.68,153.13,153.1,0.28432314]
[1748656818134,33.74607182,153.11,152.98,10.0]
[1748656818331,33.74607182,153.11,153.07,18.79181043]
[1748656818544,40.27708905,153.12,153.08,0.14216157]
[1748656818737,85.95655755,153.13,153.09,0.14216157]
[1748656818943,52.21048573,153.13,153.09,0.14216157]
[1748656819442,85.95655755,153.13,153.09,0.14216157]
[1748656819850,33.74607182,153.11,153.09,0.14216157]
[1748656820020,33.74607182,153.1,153.07,18.64964886]
[1748656820223,33.74607182,153.08,153.04,18.64964886]
[1748656820418,6.532532,153.08,153.04,18.64964886]
[1748656820732,6.532532,153.08,153.0,47.58607182]
[1748656820733,33.74607182,153.05,153.0,47.58607182]
[1748656820931,33.74607182,153.05,153.01,44.64964886]
[1748656821247,6.532532,153.08,153.03,18.64964886]
[1748656821450,85.95860382,153.08,153.04,0.28432314]
[1748656821930,33.74607182,153.05,153.0,47.58607182]
[1748656822139,33.74607182,153.05,153.01,18.64964886]
[1748656822633,85.95860382,153.08,153.02,33.88823339]
[1748656822839,40.27860382,153.08,153.03,0.14216157]
[1748656823033,79.42607182,153.07,153.03,0.14216157]
[1748656823428,33.74607182,153.06,153.03,0.14216157]
[1748656823648,45.68,153.07,152.98,40.18157182]
[1748656823649,33.74607182,153.04,152.98,40.18157182]
[1748656823853,45.68,153.07,152.97,18.64964886]
[1748656823854,33.74607182,153.01,152.97,18.64964886]
[1748656824058,33.74607182,152.99,152.95,13.84]
[1748656824228,33.74607182,152.96,152.93,6.4355]
[1748656824429,26.0,153.04,152.9,33.74607182]
[1748656824430,33.74607182,152.95,152.9,33.74607182]
[1748656824760,33.74607182,152.95,152.88,6.4355]
[1748656824761,33.74607182,152.93,152.88,40.18157182]
[1748656824930,33.74607182,152.95,152.9,33.74607182]
[1748656825152,45.66,152.96,152.91,26.0]
[1748656825349,33.74607182,152.95,152.91,26.0]
[1748656825549,33.74607182,152.93,152.88,40.18157182]
[1748656825778,33.74607182,152.93,152.88,46.72248467]